bitfinex/quotes_SOLUSD_20250919
["timestamp","ask_amount","ask_price","bid_price","bid_amount"]
[1758261682908,13.59559401,245.55,245.54,0.03]
[1758261683109,15.068392,245.55,245.54,0.03]
[1758261684322,15.778392,245.55,245.51,0.1]
[1758261684520,50.26104818,245.54,245.51,0.1]
[1758261684920,13.59559401,245.53,245.51,0.76]
[1758261685230,13.59559401,245.51,245.49,0.03]
[1758261685413,32.59279799,245.5,245.49,0.03]
[1758261686014,32.59279799,245.5,245.49,0.74]
[1758261686210,36.66611774,245.5,245.49,0.74]
[1758261686409,50.26171175,245.5,245.49,0.03]
[1758261687037,13.59559401,245.49,245.47,0.71]
[1758261687217,32.59279799,245.48,245.46,0.71]
[1758261687416,32.59279799,245.48,245.41,26.1]
[1758261687749,1.47279799,245.46,245.42,0.71]
[1758261688042,31.12,245.45,245.42,0.71]
[1758261688346,4.07431551,245.44,245.41,0.1]
[1758261688514,4.07431551,245.44,245.43,0.71]
[1758261689830,5.5471135,245.44,245.41,0.1]
[1758261690042,5.5471135,245.44,245.42,0.71]
[1758261691136,5.5471135,245.44,245.41,0.81]
[1758261691322,4.07464754,245.42,245.41,0.81]
[1758261693013,4.07464754,245.42,245.41,0.1]
[1758261693218,4.07464754,245.42,245.36,1.47279799]
[1758261693418,5.54744553,245.42,245.38,0.71]
[1758261693729,13.59559401,245.41,245.4,0.03]
[1758261693925,44.73559401,245.41,245.4,0.03]
[1758261694911,13.59559401,245.41,245.4,0.03]
[1758261695116,0.68,245.45,245.4,0.03]
[1758261695117,31.14,245.44,245.4,2.21279799]
[1758261695330,31.14,245.44,245.41,0.71]
[1758261695536,31.14,245.44,245.42,0.71]
[1758261695737,31.14,245.44,245.4,0.03]
[1758261695938,31.14,245.44,245.4,0.74]
[1758261696319,15.068392,245.43,245.4,0.03]
[1758261696520,31.18,245.42,245.4,0.03]
[1758261696922,15.068392,245.41,245.4,0.03]
[1758261697122,17.67040758,245.41,245.4,0.03]
[1758261697740,17.67040758,245.41,245.38,0.03]
[1758261699141,4.07514568,245.39,245.38,0.03]
[1758261699320,4.07514568,245.39,245.38,0.74]
[1758261700848,31.18,245.4,245.38,0.74]
[1758261701344,35.25499978,245.4,245.38,0.74]
[1758261701724,35.25499978,245.4,245.38,0.03]
[1758261702042,5.70653859,245.44,245.39,2.18279799]
[1758261702340,31.2,245.42,245.4,2.18279799]
[1758261702542,31.2,245.42,245.41,0.71]
[1758261702741,31.2,245.42,245.4,1.47279799]
[1758261702947,31.2,245.42,245.4,2.18279799]
[1758261705363,35.27465273,245.42,245.4,1.47279799]
[1758261705540,35.27465273,245.42,245.39,1.47279799]
[1758261707029,35.95465273,245.42,245.39,1.47279799]
[1758261708462,4.75465273,245.42,245.39,1.47279799]
[1758261708848,31.2,245.43,245.4,2.18279799]
[1758261709057,13.59559401,245.44,245.41,2.18279799]
[1758261709233,31.2,245.45,245.41,1.47279799]
[1758261709433,31.2,245.45,245.42,1.47279799]
[1758261709639,31.88,245.45,245.41,2.18279799]
[1758261709965,31.88,245.45,245.41,1.47279799]
[1758261710133,35.95424761,245.45,245.41,1.47279799]
[1758261711242,35.95424761,245.45,245.4,1.47279799]
[1758261711441,0.68,245.44,245.39,1.47279799]
[1758261711838,0.06,245.42,245.4,2.18279799]
[1758261712164,0.06,245.42,245.41,2.18279799]
[1758261713263,0.06,245.42,245.41,30.78481357]
[1758261713465,0.06,245.42,245.41,32.25761156]
[1758261716063,0.06,245.42,245.41,35.36196381]
[1758261716360,0.06,245.45,245.41,35.36196381]
[1758261716361,0.06,245.45,245.41,49.96739172]
[1758261716545,0.06,245.45,245.44,1.75712113]
[1758261716933,0.06,245.45,245.44,6.53143664]
[1758261717345,0.06,245.45,245.44,12.53049136]
[1758261717762,0.06,245.45,245.44,13.3611321]
[1758261718238,0.06,245.47,245.44,23.54692088]
[1758261718554,0.06,245.47,245.46,0.28432314]
[1758261718766,0.06,245.47,245.46,2.58776187]
[1758261719060,0.06,245.47,245.46,7.36174541]
[1758261721559,0.72,245.57,245.49,26.0]
[1758261721738,0.82,245.59,245.56,2.30343873]
[1758261722061,0.1,245.59,245.58,2.30343873]
[1758261722432,0.82,245.59,245.58,2.30343873]
[1758261722635,0.1,245.59,245.58,2.30343873]
[1758261722835,0.82,245.59,245.58,2.30343873]
[1758261723248,0.82,245.59,245.56,2.30343873]
[1758261723554,0.72,245.58,245.56,2.30343873]
[1758261723761,0.72,245.57,245.56,2.30343873]
[1758261724060,0.72,245.57,245.54,4.07259425]
[1758261724270,0.72,245.57,245.56,2.30343873]
[1758261724859,0.82,245.59,245.56,2.30343873]
[1758261725061,0.72,245.58,245.57,2.30343873]
[1758261725359,0.1,245.59,245.57,2.30343873]
[1758261725652,0.72,245.58,245.57,2.30343873]
[1758261726036,0.72,245.58,245.53,26.0]
[1758261726239,0.72,245.57,245.56,2.30343873]
[1758261726457,0.72,245.57,245.55,2.30343873]
[1758261726635,3.02343873,245.56,245.47,4.0737431]
[1758261726836,3.02343873,245.55,245.46,0.7]
[1758261727056,3.02343873,245.55,245.48,2.30343873]
[1758261729974,0.72,245.58,245.54,26.0]
[1758261730269,0.72,245.57,245.54,2.30343873]
[1758261730574,0.72,245.56,245.5,12.23017183]
[1758261730790,0.72,245.55,245.47,30.19]
[1758261731070,0.72,245.54,245.5,26.0]
[1758261731273,0.72,245.53,245.5,28.30343873]
[1758261731449,6.37587801,245.56,245.5,28.30343873]
[1758261731450,3.02343873,245.58,245.52,2.30343873]
[1758261731652,0.72,245.58,245.56,2.30343873]
[1758261731857,0.72,245.57,245.55,2.30343873]
[1758261732453,4.23189161,245.59,245.55,2.30343873]
[1758261732679,4.95189161,245.59,245.55,2.30343873]
[1758261732863,0.72,245.58,245.55,2.30343873]
[1758261733581,0.72,245.57,245.55,2.30343873]
[1758261733878,0.16,245.59,245.55,2.30343873]
[1758261734178,0.72,245.58,245.55,2.30343873]
[1758261734480,0.72,245.57,245.54,2.30343873]
[1758261734682,0.72,245.56,245.54,2.30343873]
[1758261735057,0.72,245.56,245.48,16.30465786]
[1758261735254,2.30343873,245.57,245.5,26.0]
[1758261735456,0.72,245.55,245.51,26.0]
[1758261735660,0.72,245.54,245.51,26.0]
[1758261735958,0.72,245.53,245.51,26.0]
[1758261736882,0.72,245.57,245.52,2.30343873]
[1758261737086,0.72,245.57,245.52,0.7]
[1758261737379,0.88,245.59,245.52,0.7]
[1758261737571,0.72,245.57,245.51,30.07312814]
[1758261737773,0.72,245.57,245.51,30.77312814]
[1758261739487,0.72,245.56,245.49,35.97338661]
[1758261739786,4.07249032,245.55,245.49,40.04547242]
[1758261739985,4.79249032,245.55,245.49,40.04547242]
[1758261740287,4.79249032,245.55,245.49,8.84547242]
[1758261740483,0.72,245.54,245.48,26.0]
[1758261741778,0.72,245.54,245.48,30.07357577]
[1758261741980,0.72,245.58,245.49,0.7]
[1758261742293,0.16,245.59,245.49,26.7]
[1758261742465,0.16,245.59,245.5,0.7]
[1758261743384,0.16,245.59,245.51,31.22]
[1758261743582,0.16,245.59,245.52,0.7]
[1758261744087,0.16,245.59,245.53,4.07282205]
[1758261744389,0.16,245.59,245.53,4.77282205]
[1758261744768,4.2318342,245.59,245.53,4.77282205]
[1758261746291,0.66,245.58,245.52,4.07296676]
[1758261746591,0.66,245.57,245.53,26.0]
[1758261746772,0.66,245.56,245.53,26.0]
[1758261746972,0.66,245.55,245.48,62.01348979]
[1758261747174,0.66,245.55,245.49,0.72]
[1758261747980,4.8918342,245.59,245.49,1.00432314]
[1758261748297,4.8918342,245.59,245.52,26.0]
[1758261748494,4.8918342,245.59,245.52,26.72]
[1758261749194,0.16,245.59,245.52,4.07282877]
[1758261749395,0.82,245.59,245.53,0.72]
[1758261749992,4.89185612,245.59,245.53,0.72]
[1758261750369,4.89185612,245.59,245.49,57.24]
[1758261750589,0.66,245.58,245.49,57.96]
[1758261750785,4.23185612,245.59,245.49,57.96]
[1758261750988,0.66,245.57,245.5,0.72]
[1758261751297,4.07232448,245.56,245.5,0.72]
[1758261751471,4.73232448,245.56,245.5,0.72]
[1758261752093,4.73232448,245.56,245.5,4.7932987]
[1758261753197,0.66,245.56,245.5,4.7932987]
[1758261753801,4.70834031,245.56,245.5,4.7932987]
[1758261754573,4.07234031,245.56,245.48,26.0]
[1758261755793,0.66,245.55,245.48,30.07350721]
[1758261755999,0.66,245.55,245.48,30.79350721]
[1758261756494,0.66,245.54,245.48,30.79350721]
[1758261757677,0.66,245.54,245.48,26.72]
[1758261757979,4.07282205,245.53,245.48,0.72]
[1758261758179,0.66,245.52,245.47,4.10380685]
[1758261758398,4.07282205,245.53,245.49,26.0]
[1758261758590,0.66,245.52,245.49,26.0]
[1758261758993,4.07282205,245.53,245.47,0.03]
[1758261758994,0.66,245.51,245.47,0.03]
[1758261759901,4.07331975,245.5,245.47,0.03]
[1758261760074,4.73331975,245.5,245.47,0.03]
[1758261761598,0.66,245.49,245.47,0.03]
[1758261764399,4.73348573,245.49,245.47,0.03]
[1758261765007,0.66,245.48,245.47,0.03]
[1758261766883,4.73365162,245.48,245.47,0.03]
[1758261767306,0.66,245.48,245.47,0.03]
[1758261767603,1.01874004,245.52,245.47,0.75]
[1758261767905,14.25559401,245.54,245.48,0.72]
[1758261768292,4.07282779,245.53,245.48,0.72]
[1758261768490,4.73282779,245.53,245.48,0.72]
[1758261769115,0.66,245.53,245.48,4.79364489]
[1758261769710,0.66,245.52,245.48,4.07364489]
[1758261770713,0.66,245.52,245.47,4.10381757]
[1758261771022,0.66,245.52,245.47,4.82381757]
[1758261771390,0.66,245.52,245.47,0.75]
[1758261771590,13.59559401,245.55,245.47,0.75]
[1758261771591,0.66,245.51,245.47,26.03]
[1758261771985,0.66,245.5,245.47,0.03]
[1758261772189,2.96338997,245.5,245.47,0.03]
[1758261772496,15.89898398,245.49,245.47,0.03]
[1758261772699,4.07365162,245.48,245.47,0.03]
[1758261773007,4.73365162,245.48,245.47,0.03]
[1758261773416,18.32924563,245.48,245.47,0.03]
[1758261773707,20.6326356,245.48,245.47,0.03]
[1758261774907,18.32924563,245.48,245.47,0.03]
[1758261783362,19.80483193,245.48,245.47,0.03]
[1758261784152,20.08915507,245.48,245.47,0.03]
[1758261784662,51.30915507,245.48,245.47,0.03]
[1758261786257,52.9411753,245.48,245.47,0.03]
[1758261786760,13.59559401,245.44,245.42,0.03]
[1758261787065,31.22,245.43,245.42,0.03]
[1758261787236,36.00448152,245.43,245.42,0.03]
[1758261787862,35.29448152,245.43,245.42,0.03]
[1758261791362,10.18430712,245.48,245.42,0.72]
[1758261791530,44.81559401,245.47,245.42,0.72]
[1758261791726,44.81559401,245.47,245.43,0.69]
[1758261792147,48.88956443,245.47,245.43,0.69]
[1758261792656,59.07410836,245.47,245.42,0.03]
[1758261792839,4.07414952,245.45,245.42,0.03]
[1758261793045,14.25952332,245.45,245.42,0.03]
[1758261793344,0.71,245.44,245.42,0.03]
[1758261793737,0.71,245.43,245.42,0.03]
[1758261794451,4.78448152,245.43,245.42,0.03]
[1758261795457,18.38007553,245.43,245.42,0.03]
[1758261797888,4.07448152,245.43,245.42,0.03]
[1758261798561,19.14566183,245.43,245.42,0.03]
[1758261798747,19.85566183,245.43,245.42,0.03]
[1758261800140,19.85566183,245.43,245.42,0.03]
[1758261803750,19.14566183,245.43,245.42,0.03]
[1758261804355,19.85566183,245.43,245.42,0.03]
[1758261805367,19.14566183,245.43,245.42,0.03]
[1758261805569,48.91007553,245.43,245.42,0.03]
[1758261806269,35.31448152,245.43,245.42,0.03]
[1758261806570,48.91007553,245.43,245.42,0.03]
[1758261806771,50.38566183,245.43,245.42,0.03]
[1758261807469,35.31448152,245.43,245.42,0.03]
[1758261808570,36.79006782,245.43,245.42,0.03]
[1758261810075,35.31448152,245.43,245.42,0.74]
[1758261810567,11.6609601,245.45,245.42,0.74]
[1758261810568,4.07430818,245.45,245.42,0.74]
[1758261810767,35.31430818,245.45,245.42,0.03]
[1758261810967,35.31430818,245.45,245.43,0.71]
[1758261811882,0.67,245.49,245.42,0.03]
[1758261812057,17.66891376,245.5,245.44,0.71]
[1758261812259,4.07331975,245.5,245.44,0.71]
[1758261812662,16.40220543,245.5,245.44,0.71]
[1758261812862,14.92661913,245.5,245.44,0.71]
[1758261816980,14.92661913,245.5,245.42,0.03]
[1758261816981,16.40220543,245.5,245.43,0.71]
[1758261817172,14.92661913,245.5,245.43,0.71]
[1758261817670,17.66891376,245.5,245.43,0.71]
[1758261817972,18.33891376,245.5,245.44,0.03]
[1758261818274,18.39891376,245.5,245.44,0.03]
[1758261818875,13.59559401,245.49,245.44,0.03]
[1758261819057,13.59559401,245.47,245.44,0.03]
[1758261819255,15.07118031,245.47,245.44,0.03]
[1758261819482,0.67,245.46,245.44,0.03]
[1758261819983,0.67,245.45,245.44,0.03]
[1758261820568,6.21973582,245.45,245.44,0.03]
[1758261821180,4.74414952,245.45,245.44,0.03]
[1758261821887,18.33974353,245.45,245.44,0.03]
[1758261822187,51.03532983,245.45,245.44,0.03]
[1758261834085,48.86974353,245.45,245.44,0.03]
[1758261836590,48.88974353,245.45,245.44,0.03]
[1758261838196,48.94974353,245.45,245.44,0.03]
[1758261838392,35.35414952,245.45,245.44,0.03]
[1758261838690,0.06,245.45,245.44,0.7]
[1758261840191,4.13414952,245.45,245.44,0.7]
[1758261841294,4.13414952,245.45,245.44,0.03]
[1758261844699,4.85414952,245.45,245.44,0.03]
[1758261845798,4.13414952,245.45,245.44,0.03]
[1758261850513,20.75500217,245.45,245.44,0.03]
[1758261850676,51.93500217,245.45,245.44,0.03]
[1758261854122,4.13414952,245.45,245.44,0.7]
[1758261854287,31.24,245.45,245.44,0.03]
[1758261854608,31.24,245.45,245.44,0.7]
[1758261854990,31.24,245.45,245.44,0.03]
[1758261855188,35.31414952,245.45,245.44,0.03]
[1758261855389,4.13414952,245.45,245.44,0.03]
[1758261855708,0.06,245.45,245.44,0.03]
[1758261857715,0.06,245.45,245.44,0.7]
[1758261858509,0.06,245.45,245.44,0.03]
[1758261858726,4.13414952,245.45,245.44,0.03]
[1758261859384,4.85414952,245.45,245.44,0.03]
[1758261859584,4.13414952,245.45,245.44,0.03]
[1758261861800,0.06,245.45,245.44,0.03]
[1758261861991,0.06,245.45,245.44,0.7]
[1758261862411,0.06,245.45,245.44,0.03]
[1758261863007,4.13414952,245.45,245.44,0.03]
[1758261863392,4.85414952,245.45,245.44,0.03]
[1758261863718,7.15940816,245.45,245.44,0.03]
[1758261864102,4.85414952,245.45,245.44,0.03]
[1758261866123,16.11754959,245.45,245.44,0.03]
[1758261866601,11.32340007,245.45,245.44,0.03]
[1758261867019,18.42280823,245.45,245.44,0.03]
[1758261869445,17.70280823,245.45,245.44,0.03]
[1758261869619,15.39754959,245.45,245.44,0.03]
[1758261870322,11.32340007,245.45,245.44,0.03]
[1758261870526,11.32340007,245.45,245.44,0.74]
[1758261871221,11.32340007,245.45,245.44,0.03]
[1758261874231,15.39754959,245.45,245.44,0.03]
[1758261877830,16.11754959,245.45,245.37,0.28432314]
[1758261878825,16.11754959,245.45,245.39,26.0]
[1758261879527,16.11754959,245.45,245.39,30.07514389]
[1758261879823,16.11754959,245.45,245.39,30.27514389]
[1758261880122,12.04340007,245.45,245.39,30.27514389]
[1758261880321,11.32340007,245.45,245.4,0.2]
[1758261880521,12.04340007,245.45,245.4,0.2]
[1758261880821,15.39756592,245.45,245.39,30.07514389]
[1758261881031,16.11756592,245.45,245.39,30.27514389]
[1758261884531,15.39756592,245.45,245.39,26.0]
[1758261884730,0.72,245.44,245.39,26.0]
[1758261884932,0.72,245.44,245.39,30.07512611]
[1758261885227,11.32340007,245.45,245.39,30.27512611]
[1758261885424,12.04340007,245.45,245.39,30.27512611]
[1758261885811,0.72,245.44,245.39,26.0]
[1758261886011,0.72,245.44,245.39,26.2]
[1758261886241,0.72,245.44,245.39,0.2]
[1758261886413,0.72,245.44,245.39,30.27514105]
[1758261887514,0.06,245.45,245.39,30.07514105]
[1758261887722,0.78,245.45,245.4,4.27492035]
[1758261887932,0.78,245.45,245.4,4.07492035]
[1758261888225,0.06,245.45,245.4,4.27492035]
[1758261888433,0.78,245.45,245.4,4.07492035]
[1758261888614,0.72,245.44,245.4,4.07492035]
[1758261890441,0.06,245.45,245.4,4.07492035]
[1758261890442,0.78,245.45,245.4,4.07492035]
[1758261890617,0.72,245.44,245.4,4.07492035]
[1758261894734,0.72,245.44,245.4,30.07492035]
[1758261897035,0.06,245.45,245.4,30.27492035]
[1758261897339,0.73,245.45,245.4,30.27492035]
[1758261897636,0.73,245.45,245.4,30.07492035]
[1758261898041,0.73,245.45,245.4,30.27492035]
[1758261900137,0.67,245.44,245.4,30.07492035]
[1758261901524,4.13415474,245.45,245.4,26.0]
[1758261901743,0.67,245.44,245.39,31.16]
[1758261901925,0.67,245.44,245.39,61.43512762]
[1758261902929,0.06,245.45,245.4,0.2]
[1758261903245,0.73,245.45,245.4,0.2]
[1758261903442,0.06,245.45,245.42,26.0]
[1758261904029,0.73,245.45,245.42,26.0]
[1758261904658,0.06,245.45,245.42,26.0]
[1758261904841,0.67,245.44,245.42,26.0]
[1758261906047,0.67,245.43,245.39,31.16]
[1758261906251,0.67,245.42,245.39,31.16]
[1758261907231,0.67,245.42,245.38,26.03]
[1758261907530,0.67,245.42,245.39,31.16]
[1758261908043,0.67,245.42,245.39,35.23512067]
[1758261908246,0.67,245.44,245.39,35.23512067]
[1758261908639,0.67,245.43,245.39,35.23512067]
[1758261911032,0.67,245.43,245.4,31.16]
[1758261911352,0.67,245.43,245.4,35.23497682]
[1758261911651,0.73,245.45,245.4,35.43497682]
[1758261911828,0.67,245.44,245.4,35.23497682]
[1758261913055,0.67,245.43,245.4,35.23497682]
[1758261913352,0.67,245.42,245.38,4.10515464]
[1758261913535,0.67,245.41,245.38,0.03]
[1758261913738,0.67,245.41,245.38,31.19]
[1758261913937,0.67,245.4,245.38,31.19]
[1758261914344,0.67,245.39,245.38,31.19]
[1758261914923,0.67,245.39,245.38,0.03]
[1758261921861,1.10119998,245.42,245.38,0.03]
[1758261922035,0.67,245.41,245.38,0.03]
[1758261923231,1.10119998,245.42,245.38,0.03]
[1758261923436,1.10119998,245.42,245.39,0.2]
[1758261923644,1.10119998,245.42,245.41,4.07481357]
[1758261924472,0.06,245.41,245.4,31.22]
[1758261925058,0.06,245.41,245.4,35.29497962]
[1758261925437,0.75,245.41,245.4,35.29497962]
[1758261925766,0.75,245.41,245.4,4.07497962]
[1758261925967,0.06,245.41,245.4,35.29497962]
[1758261929146,0.06,245.41,245.4,35.49497962]
[1758261929347,0.06,245.41,245.4,35.29497962]
[1758261930764,0.06,245.41,245.4,35.49497962]
[1758261931348,0.06,245.41,245.4,35.29497962]
[1758261932272,0.75,245.41,245.4,26.0]
[1758261932454,0.75,245.41,245.4,57.2]
[1758261932857,0.75,245.41,245.38,0.03]
[1758261933156,0.75,245.41,245.4,1.63162081]
[1758261933368,0.75,245.41,245.38,31.23]
[1758261933564,0.69,245.4,245.38,36.40584984]
[1758261933761,0.69,245.39,245.38,36.40584984]
[1758261935283,0.69,245.39,245.38,5.20584984]
[1758261935474,0.69,245.39,245.38,36.40584984]
[1758261935671,1.17660003,245.41,245.38,36.40584984]
[1758261935978,0.69,245.4,245.39,31.2]
[1758261938375,0.69,245.4,245.38,5.20584984]
[1758261938576,0.06,245.41,245.39,31.2]
[1758261938965,0.06,245.41,245.38,5.20584984]
[1758261939165,0.69,245.4,245.39,31.2]
[1758261939372,0.69,245.4,245.38,5.20584984]
[1758261939669,0.06,245.41,245.39,31.2]
[1758261940177,0.69,245.4,245.39,31.2]
[1758261940968,0.69,245.4,245.38,5.20584984]
[1758261941191,0.69,245.4,245.39,31.18]
[1758261943193,0.69,245.4,245.38,5.20584984]
[1758261943491,2.17660003,245.41,245.39,31.18]
[1758261943989,0.69,245.4,245.39,31.18]
[1758261945280,2.17660003,245.41,245.39,31.18]
[1758261945482,2.86660003,245.41,245.39,31.18]
[1758261945682,2.17660003,245.41,245.39,31.18]
[1758261946301,2.17660003,245.41,245.39,33.35660003]
[1758261947471,2.86660003,245.41,245.39,33.35660003]
[1758261947989,0.69,245.4,245.39,33.35660003]
[1758261948609,0.69,245.4,245.39,2.17660003]
[1758261948778,0.69,245.4,245.39,33.35660003]
[1758261949173,0.69,245.4,245.39,31.18]
[1758261952898,0.69,245.4,245.38,0.03]
[1758261953086,0.69,245.4,245.39,31.18]
[1758261953798,2.17660003,245.41,245.39,31.18]
[1758261954374,2.17660003,245.41,245.39,37.43172645]
[1758261954580,0.06,245.41,245.39,37.43172645]
[1758261959585,0.06,245.41,245.39,37.63172645]
[1758261959784,0.06,245.41,245.39,37.43172645]
[1758261959991,0.06,245.41,245.39,37.63172645]
[1758261960192,0.06,245.41,245.4,0.2]
[1758261960400,0.06,245.41,245.39,37.63172645]
[1758261960599,0.06,245.41,245.39,35.25512642]
[1758261961001,0.06,245.41,245.39,37.43172645]
[1758261961403,0.06,245.41,245.39,33.35660003]
[1758261961914,0.06,245.41,245.39,37.43174386]
[1758261964314,0.06,245.41,245.39,33.35660003]
[1758261964811,0.06,245.41,245.4,31.16]
[1758261965488,0.78,245.41,245.4,33.33660003]
[1758261966423,0.78,245.41,245.4,31.16]
[1758261967291,5.95602045,245.41,245.38,31.20569139]
[1758261967501,0.72,245.4,245.39,31.16]
[1758261967689,1.82119998,245.4,245.39,31.16]
[1758261968704,1.82119998,245.4,245.38,26.03]
[1758261968705,5.8961796,245.4,245.38,26.03]
[1758261968904,0.72,245.39,245.38,31.19]
[1758261969410,0.72,245.39,245.38,0.03]
[1758261969616,1.82119998,245.39,245.38,0.03]
[1758261970416,5.89634566,245.39,245.38,0.03]
[1758261974829,8.20185969,245.39,245.38,0.03]
[1758261975022,5.89634566,245.39,245.38,0.03]
[1758261975336,8.20185969,245.39,245.38,0.03]
[1758261975839,1.82119998,245.39,245.38,0.03]
[1758261976145,5.89634566,245.39,245.38,0.03]
[1758261976735,8.20185969,245.39,245.38,0.03]
[1758261977521,5.89634566,245.39,245.38,0.03]
[1758261978262,21.7974537,245.39,245.38,0.03]
[1758261983629,19.49193967,245.39,245.38,0.03]
[1758261983950,21.7974537,245.39,245.38,0.03]
[1758261985858,52.9774537,245.39,245.38,0.03]
[1758261987153,21.7974537,245.39,245.38,0.03]
[1758261987358,52.9774537,245.39,245.38,0.03]
[1758261987951,54.60980694,245.39,245.38,0.03]
[1758261992860,52.9774537,245.39,245.38,0.03]
[1758261993355,3.11660003,245.39,245.38,0.03]
[1758261993874,3.17660003,245.39,245.38,0.03]
[1758261997355,3.17660003,245.39,245.38,0.03]
[1758261998763,10.23725974,245.39,245.38,0.03]
[1758262000048,3.17660003,245.39,245.38,0.03]
[1758262000456,7.25174571,245.39,245.38,0.03]
[1758262001372,7.93174571,245.39,245.38,0.03]
[1758262002067,7.25174571,245.39,245.38,0.03]
[1758262002765,3.17660003,245.39,245.38,0.03]
[1758262007973,3.85660003,245.39,245.38,0.03]
[1758262008873,7.93174571,245.39,245.38,0.03]
[1758262009067,10.23725974,245.39,245.38,0.03]
[1758262009270,23.83285375,245.39,245.38,0.03]
[1758262011875,10.23725974,245.39,245.38,0.03]
[1758262013256,21.83806014,245.39,245.38,0.03]
[1758262015883,35.43365415,245.39,245.38,0.03]
[1758262023771,34.60513285,245.39,245.38,0.03]
[1758262024990,34.60513285,245.39,245.38,0.005]
[1758262026090,64.28814012,245.39,245.38,0.005]
[1758262026266,65.76513285,245.39,245.38,0.005]
[1758262028594,66.04945599,245.39,245.38,0.005]
[1758262028791,67.68194247,245.39,245.38,0.005]
[1758262031182,36.23761933,245.39,245.38,0.005]
[1758262031383,65.76513285,245.39,245.38,0.005]
[1758262035286,33.92513285,245.39,245.38,0.005]
[1758262035486,51.48953884,245.39,245.38,0.005]
[1758262036687,20.32953884,245.39,245.38,0.005]
[1758262036884,51.48953884,245.39,245.38,0.005]
[1758262038587,18.85254611,245.39,245.38,0.005]
[1758262039181,19.53254611,245.39,245.38,0.005]
[1758262039403,18.85254611,245.39,245.38,0.005]
[1758262039902,33.12814012,245.39,245.38,0.005]
[1758262040104,34.60513285,245.39,245.38,0.005]
[1758262043208,42.94993296,245.39,245.38,0.005]
[1758262048312,41.47294023,245.39,245.38,0.005]
[1758262048520,42.94993296,245.39,245.38,0.005]
[1758262051920,44.58235281,245.39,245.38,0.005]
[1758262053110,42.94993296,245.39,245.38,0.005]
[1758262058830,43.2342561,245.39,245.38,0.005]
[1758262065511,74.3942561,245.39,245.38,0.005]
[1758262067107,76.02687584,245.39,245.38,0.005]
[1758262067426,54.17882793,245.36,245.35,1e-08]
[1758262067623,85.33882793,245.36,245.35,1e-08]
[1758262067822,112.54230087,245.36,245.35,1e-08]
[1758262074726,75.3147109,245.36,245.35,1e-08]
[1758262075127,76.79170363,245.36,245.35,1e-08]
[1758262077915,75.3147109,245.36,245.35,1e-08]
[1758262078133,76.79170363,245.36,245.35,1e-08]
[1758262078935,75.3147109,245.36,245.35,0.20000001]
[1758262079139,75.3147109,245.36,245.35,1e-08]
[1758262082546,26.48347294,245.36,245.35,0.20000001]
[1758262084161,26.48347294,245.36,245.35,4.27581007]
[1758262084457,26.48347294,245.36,245.35,0.20000001]
[1758262084935,26.48347294,245.36,245.35,1e-08]
[1758262086330,31.26911689,245.36,245.35,1e-08]
[1758262086528,47.17180017,245.36,245.35,1e-08]
[1758262087045,44.8647109,245.36,245.35,1e-08]
[1758262087236,47.17180017,245.36,245.35,1e-08]
[1758262087831,75.3147109,245.36,245.35,1e-08]
[1758262088025,44.1547109,245.36,245.35,1e-08]